bitfinex/quotes_ETHUSD_20250426
["timestamp","ask_amount","ask_price","bid_price","bid_amount"]
[1745669127609,21.895,1788.8,1788.7,6.70880673]
[1745669129680,21.895,1788.8,1788.7,5.59065242]
[1745669131621,21.895,1788.8,1788.6,5.59096383]
[1745669131831,22.86124242,1788.8,1788.6,11.18155878]
[1745669132009,22.86124242,1788.8,1788.7,5.59065242]
[1745669132185,22.09154242,1788.8,1788.7,5.59065242]
[1745669135693,22.09154242,1788.8,1788.7,6.7087923]
[1745669136326,22.09154242,1788.8,1788.7,5.59065242]
[1745669136728,22.09154242,1788.8,1788.6,5.59080727]
[1745669137711,22.09154242,1788.8,1788.7,5.59065242]
[1745669140533,5.31454242,1788.8,1788.7,5.59065242]
[1745669142835,0.7829,1788.7,1788.5,11.18221045]
[1745669143032,0.7829,1788.7,1788.6,5.590965]
[1745669143195,0.7829,1788.7,1788.4,5.59146354]
[1745669143627,0.7829,1788.7,1788.4,5.59158632]
[1745669143834,5.42709375,1788.8,1788.2,5.59204078]
[1745669143835,0.30909375,1788.6,1788.2,5.59204078]
[1745669144139,0.7829,1788.5,1788.2,5.59201099]
[1745669144434,5.42409375,1788.4,1788.2,5.59201099]
[1745669145229,5.115,1788.4,1788.2,5.59201099]
[1745669145431,5.115,1788.4,1788.3,5.59190292]
[1745669145635,5.115,1788.4,1788.3,6.71029431]
[1745669146734,0.7829,1788.9,1788.8,5.59033989]
[1745669146924,5.116,1788.9,1788.8,5.59033989]
[1745669148501,5.116,1788.9,1788.7,5.59051185]
[1745669148740,5.116,1788.9,1788.8,5.59033989]
[1745669149639,5.116,1788.9,1788.7,5.59046365]
[1745669149843,5.116,1788.9,1788.6,5.59080878]
[1745669150148,0.7525,1788.8,1788.5,5.59103614]
[1745669150506,0.7525,1788.8,1788.5,11.18207496]
[1745669150847,0.7525,1788.8,1788.6,11.18176908]
[1745669151049,0.7525,1788.8,1788.6,5.59082633]
[1745669151339,0.7525,1788.8,1788.7,5.59065242]
[1745669151710,0.7525,1788.8,1788.5,5.59112101]
[1745669151928,0.7525,1788.8,1788.6,5.59080261]
[1745669153442,0.7525,1788.8,1788.5,5.59109505]
[1745669153734,0.7525,1788.8,1788.6,5.59091654]
[1745669153939,1.06162667,1788.8,1788.6,5.59091654]
[1745669154328,1.06162667,1788.8,1788.5,5.59109505]
[1745669154522,1.06162667,1788.8,1788.6,5.59092479]
[1745669154729,0.7525,1788.8,1788.7,5.59065242]
[1745669156442,0.7525,1788.8,1788.6,5.59074853]
[1745669156745,0.18411754,1788.7,1788.6,5.59074853]
[1745669157540,0.18411754,1788.7,1788.6,6.70892657]
[1745669157942,5.8712,1788.9,1788.6,5.59076916]
[1745669158110,0.16867302,1788.7,1788.6,5.59076916]
[1745669158311,5.8712,1788.9,1788.5,5.59111874]
[1745669158639,0.16867302,1788.7,1788.5,5.59111874]
[1745669158842,0.7552,1788.7,1788.5,5.59111874]
[1745669159034,0.16849825,1788.6,1788.5,5.59111874]
[1745669160251,0.16849825,1788.6,1788.5,6.70937858]
[1745669161120,5.8712,1788.9,1788.6,5.59072228]
[1745669161308,0.7552,1788.8,1788.5,5.5911655]
[1745669161647,0.7552,1788.8,1788.4,5.59133179]
[1745669161847,0.7552,1788.8,1788.5,5.59109008]
[1745669162254,0.7552,1788.8,1788.2,12.54102693]
[1745669162427,3.50461466,1788.7,1788.2,5.59209454]
[1745669162622,1.06456062,1788.6,1788.2,5.59209454]
[1745669162824,5.116,1788.5,1788.1,5.64240918]
[1745669163143,0.7981,1788.4,1788.1,0.05]
[1745669163350,0.7981,1788.4,1788.1,5.6423195]
[1745669165266,1.10722513,1788.4,1788.1,5.6423195]
[1745669165635,0.7981,1788.4,1788.1,5.64237662]
[1745669166046,0.7981,1788.4,1788.1,0.05]
[1745669166242,3.7981,1788.4,1788.1,0.05]
[1745669166639,0.7981,1788.2,1788.1,0.05]
[1745669166866,3.7981,1788.2,1788.1,0.05]
[1745669167268,4.10699265,1788.2,1788.1,0.05]
[1745669169030,3.7981,1788.2,1788.1,0.05]
[1745669169231,5.113,1788.2,1788.1,5.64225151]
[1745669169436,5.113,1788.2,1788.1,6.76574963]
[1745669169677,5.113,1788.2,1788.1,5.64225151]
[1745669171371,5.113,1788.2,1788.1,0.05]
[1745669171793,5.25388511,1788.2,1788.1,0.05]
[1745669172792,8.25388511,1788.2,1788.1,0.05]
[1745669172970,9.58759977,1788.2,1788.1,0.05]
[1745669173299,9.89624285,1788.2,1788.1,0.05]
[1745669173971,13.25224285,1788.2,1788.1,0.05]
[1745669174271,13.52111234,1788.2,1788.1,0.05]
[1745669174475,19.61111234,1788.2,1788.1,0.05]
[1745669175074,19.61111234,1788.2,1787.1,6.44039852]
[1745669175075,3.356,1787.3,1787.1,0.05]
[1745669175277,29.81822932,1787.2,1787.1,0.05]
[1745669175446,0.0963,1787.1,1786.2,5.59824274]
[1745669175636,29.95689438,1787.2,1786.3,5.5980082]
[1745669175637,0.60091466,1786.7,1786.3,5.5980082]
[1745669175846,0.60091466,1786.7,1786.1,0.05]
[1745669175847,0.50461466,1786.5,1786.1,0.05]
[1745669176041,0.13866506,1786.6,1786.1,0.05]
[1745669176370,5.22570044,1786.5,1786.4,5.59785042]
[1745669176749,0.11170044,1786.5,1786.4,5.59785042]
[1745669176955,5.22570044,1786.5,1786.3,5.59813686]
[1745669177159,5.61861466,1786.5,1786.2,5.59831616]
[1745669177358,0.11170044,1786.4,1786.3,5.5981638]
[1745669178183,0.11170044,1786.4,1786.2,5.59833607]
[1745669178335,0.11170044,1786.4,1786.1,5.64864906]
[1745669178977,0.11170044,1786.4,1786.1,0.05]
[1745669179150,0.11170044,1786.4,1786.1,5.64850339]
[1745669179363,0.11170044,1786.4,1786.2,5.59834898]
[1745669179579,0.11170044,1786.4,1786.3,5.5981638]
[1745669179750,5.115,1786.4,1786.3,5.5981638]
[1745669180078,5.22552884,1786.4,1786.1,5.64849829]
[1745669180374,5.22552884,1786.4,1786.1,0.05]
[1745669180576,5.22552884,1786.4,1786.3,5.5981638]
[1745669182265,5.22552884,1786.4,1786.2,5.59831216]
[1745669182474,5.22552884,1786.4,1786.3,5.5981638]
[1745669184445,0.11052884,1786.4,1786.3,5.5981638]
[1745669184747,5.117,1786.4,1786.3,5.5981638]
[1745669185253,5.22752884,1786.4,1786.3,5.5981638]
[1745669186848,5.22752884,1786.4,1786.3,7.51352642]
[1745669187050,1e-08,1786.4,1786.3,7.51352642]
[1745669187248,6.09,1787.6,1787.1,5.59552179]
[1745669187249,17.6097,1787.3,1787.1,5.59552179]
[1745669187448,5.118,1787.2,1787.1,5.59552179]
[1745669188017,16.801,1787.3,1787.2,5.59534467]
[1745669188212,21.919,1787.3,1787.2,5.59534467]
[1745669188653,21.919,1787.3,1787.1,5.59552179]
[1745669188854,16.801,1787.3,1787.1,5.59550164]
[1745669189057,5.118,1787.2,1787.1,5.59550164]
[1745669189264,5.118,1787.2,1787.0,5.59583967]
[1745669189652,5.118,1787.2,1786.8,5.59650777]
[1745669189653,0.7691,1787.1,1786.8,5.59650777]
[1745669189847,0.7691,1787.1,1786.7,5.5969005]
[1745669190051,0.7691,1787.1,1786.8,5.59640311]
[1745669190361,0.7691,1787.1,1786.8,5.59647311]
[1745669191027,0.7691,1787.1,1786.9,5.5962522]
[1745669191227,3.7691,1787.1,1786.6,5.59722377]
[1745669191430,3.7691,1787.1,1786.5,6.370375]
[1745669191749,3.7691,1787.1,1786.5,5.5973482]
[1745669191750,0.7691,1787.0,1786.5,5.5973482]
[1745669193469,0.7691,1787.0,1786.6,5.59720504]
[1745669193669,0.7691,1787.0,1786.5,11.19462757]
[1745669193874,0.7691,1787.0,1786.6,5.59720397]
[1745669194451,0.7691,1787.0,1786.6,5.59702849]
[1745669194869,0.7691,1787.0,1786.6,11.19403668]
[1745669195044,0.7691,1787.0,1786.7,5.59677566]
[1745669195247,5.115,1786.9,1786.7,5.59674774]
[1745669195552,5.115,1786.9,1786.8,5.59655151]
[1745669195885,3.7717,1787.2,1786.9,5.59628406]
[1745669196076,5.115,1787.1,1786.9,5.59628406]
[1745669196373,5.115,1787.1,1786.7,5.59674429]
[1745669196374,5.115,1787.1,1786.7,5.59666457]
[1745669197851,3.0,1787.0,1786.6,5.59722144]
[1745669198176,0.7645,1786.9,1786.6,5.59722144]
[1745669198770,0.7645,1786.9,1786.5,5.5973698]
[1745669198974,0.7645,1786.9,1786.5,5.59741723]
[1745669199635,5.115,1786.8,1786.5,5.59741723]
[1745669200273,5.115,1786.8,1786.4,5.59769113]
[1745669200463,5.115,1786.8,1786.5,5.59751177]
[1745669202794,3.0,1786.7,1786.3,0.8083]
[1745669202990,3.0,1786.7,1786.2,5.59817938]
[1745669203168,0.7645,1786.6,1786.3,5.59801798]
[1745669203494,0.7645,1786.6,1786.4,5.59771995]
[1745669204389,1.07268336,1786.6,1786.3,11.19593855]
[1745669204588,1.07268336,1786.6,1786.3,5.59804656]
[1745669204890,0.30818336,1786.5,1786.3,5.59804656]
[1745669205082,5.115,1786.4,1786.3,5.59804656]
[1745669206462,5.115,1786.4,1786.3,6.42494656]
[1745669207166,5.115,1786.4,1786.3,7.62727309]
[1745669208313,5.115,1786.4,1786.3,5.59804656]
[1745669208594,5.8795,1786.4,1786.1,0.05]
[1745669208806,22.6815,1786.4,1786.1,0.05]
[1745669209178,0.30902722,1786.3,1786.1,0.05]
[1745669209363,3.30902722,1786.3,1786.1,0.05]
[1745669209766,0.30902722,1786.2,1786.1,0.05]
[1745669210996,0.30902722,1786.2,1786.1,5.64879066]
[1745669211701,3.0,1786.3,1786.1,5.64879066]
[1745669211999,3.0,1786.3,1786.1,5.64871343]
[1745669212200,22.6815,1786.4,1786.2,5.59816835]
[1745669212391,21.917,1786.4,1786.3,5.5981638]
[1745669219175,21.918,1786.4,1786.3,5.5981638]
[1745669221589,16.802,1786.4,1786.3,6.3693638]
[1745669221792,16.802,1786.4,1786.3,7.56611702]
[1745669223932,16.802,1786.4,1786.3,6.3693638]
[1745669228484,16.802,1786.4,1786.3,5.5981638]
[1745669229102,5.116,1786.5,1786.4,5.59785042]
[1745669231910,5.116,1786.5,1786.4,6.39685042]
[1745669233130,21.915,1786.9,1786.8,6.36499726]
[1745669233994,0.8176,1787.3,1786.8,6.36499726]
[1745669233995,3.8176,1787.5,1787.2,5.59534467]
[1745669234317,16.802,1787.6,1787.4,5.59471858]
[1745669234496,5.112,1787.5,1787.4,5.59471858]
[1745669237128,0.8176,1787.4,1787.2,5.59532551]
[1745669237329,0.8176,1787.4,1787.0,5.59597086]
[1745669237632,0.8176,1787.4,1787.0,5.59574981]
[1745669238138,0.8176,1787.4,1787.1,5.5955596]
[1745669238298,0.8176,1787.4,1787.2,5.59515735]
[1745669238493,0.8176,1787.4,1786.9,5.5962827]
[1745669238699,5.9296,1787.5,1787.3,5.59487526]
[1745669238898,5.9296,1787.5,1787.2,5.59507254]
[1745669239098,5.9296,1787.5,1787.3,5.59503096]
[1745669239735,5.9296,1787.5,1787.4,5.59471858]
[1745669240040,5.112,1787.5,1787.4,5.59471858]
[1745669240740,16.802,1787.6,1787.4,5.59471858]
[1745669241041,5.111,1787.5,1787.4,5.59471858]
[1745669242244,16.802,1787.6,1787.4,6.71368253]
[1745669242536,5.111,1787.5,1787.4,5.59471858]
[1745669242738,5.21670927,1787.5,1787.4,5.59471858]
[1745669246534,5.21670927,1787.5,1787.4,6.38811858]
[1745669247041,5.21477691,1787.5,1787.4,6.38811858]
[1745669247622,16.802,1787.6,1787.5,5.59440559]
[1745669247855,5.11,1787.8,1787.7,5.59377971]
[1745669253464,5.11,1787.8,1787.7,6.36447971]
[1745669256265,5.11,1787.8,1787.7,5.59377971]
[1745669263475,5.8738,1787.8,1787.4,5.59455635]
[1745669263634,5.8738,1787.8,1787.4,5.59453157]
[1745669263971,5.8738,1787.8,1787.5,5.59439321]
[1745669264577,5.8738,1787.8,1787.6,5.59378098]
[1745669264778,5.8738,1787.8,1787.6,5.59386075]
[1745669265564,5.8738,1787.8,1787.7,5.59377971]
[1745669266267,5.11,1787.8,1787.7,5.59377971]
[1745669266438,5.11,1787.8,1787.6,5.59390724]
[1745669266642,5.11,1787.8,1787.5,5.59421531]
[1745669266841,5.11,1787.8,1787.5,11.18842177]
[1745669267242,5.11,1787.8,1787.5,5.59420646]
[1745669267938,5.11,1787.8,1787.5,11.18839916]
[1745669268270,5.11,1787.8,1787.5,5.5941927]
[1745669268571,5.11,1787.8,1787.6,5.59408843]
[1745669269782,0.7638,1787.7,1787.0,6.13]
[1745669269956,0.7638,1787.7,1787.2,5.59519872]
[1745669270154,0.7638,1787.7,1787.2,11.19035155]
[1745669270478,0.7638,1787.5,1787.2,5.59532138]
[1745669270680,5.106,1787.4,1787.2,5.59532138]
[1745669272274,5.106,1787.4,1787.2,6.77569381]
[1745669272592,5.106,1787.4,1787.3,5.59503161]
[1745669272752,5.106,1787.4,1787.3,6.35943161]
[1745669273257,5.106,1787.4,1787.3,6.86557923]
[1745669273756,0.8248,1787.9,1787.8,5.59346683]
[1745669273947,5.9308,1787.9,1787.8,5.59346683]
[1745669277710,5.9308,1787.9,1787.7,5.59361081]
[1745669278071,5.9308,1787.9,1787.7,5.59357272]
[1745669278517,5.9308,1787.9,1787.4,5.59471485]
[1745669278680,5.9308,1787.9,1787.6,5.59409263]
[1745669279017,5.9308,1787.9,1787.7,5.59375423]
[1745669279909,5.9308,1787.9,1787.8,5.59346683]
[1745669280281,5.106,1787.9,1787.8,5.59346683]
[1745669287548,2.82004797,1788.1,1788.0,5.59284116]
[1745669287698,7.92204797,1788.1,1788.0,6.71142877]
[1745669288729,2.82004797,1788.1,1788.0,6.71142877]
[1745669288897,7.92204797,1788.1,1788.0,7.46692877]
[1745669289115,5.602,1788.1,1788.0,7.46692877]
[1745669290331,0.5,1788.1,1788.0,7.46692877]
[1745669291641,0.5,1788.1,1788.0,5.59284116]
[1745669292752,0.5,1788.1,1787.8,5.59330375]
[1745669292953,0.5,1788.1,1787.6,6.8855]
[1745669292954,5.101,1788.0,1787.6,6.8855]
[1745669293254,5.8862,1788.0,1787.6,6.8855]
[1745669293620,5.8862,1788.0,1787.9,5.59315397]
[1745669294358,5.101,1788.0,1787.9,5.59315397]
[1745669295310,0.5,1788.1,1788.0,5.59284116]
[1745669295500,5.601,1788.1,1788.0,5.59284116]
[1745669295735,0.5,1788.1,1788.0,5.59284116]
[1745669296343,0.5,1788.1,1788.0,6.34834116]
[1745669297641,0.5,1788.1,1788.0,6.85418595]
[1745669297813,0.5,1788.1,1788.0,8.21078565]
[1745669299861,0.5,1788.1,1788.0,7.70494086]
[1745669300065,0.5,1788.1,1788.0,6.94944086]
[1745669301569,0.5,1788.1,1788.0,7.74874086]
[1745669301772,1e-08,1788.1,1788.0,7.74874086]
[1745669304934,1e-08,1788.1,1788.0,13.87874086]
[1745669305935,1e-08,1788.9,1788.8,6.37933989]
[1745669306241,1e-08,1788.9,1788.8,6.88518468]
[1745669306535,1e-08,1788.9,1788.8,7.736973]
[1745669306878,1e-08,1788.9,1788.8,16.866973]
[1745669307039,1e-08,1788.9,1788.8,19.11272419]
[1745669307655,1e-08,1788.9,1788.8,21.10067676]
[1745669308084,5.099,1789.8,1789.7,5.58752863]
[1745669308490,0.05,1789.9,1789.8,5.58721644]
[1745669312693,0.15971485,1789.9,1789.8,5.58721644]
[1745669312870,0.15971485,1789.9,1789.8,6.70469095]
[1745669314658,0.05,1789.9,1789.8,6.70469095]
[1745669314872,0.05,1789.9,1789.8,5.58721644]
[1745669315074,0.05,1789.9,1789.5,5.58801679]
[1745669315299,0.90351695,1789.8,1789.6,5.58753143]
[1745669315893,0.90351695,1789.8,1789.5,5.58800171]
[1745669315894,5.097,1789.7,1789.5,5.58802306]
[1745669316098,5.097,1789.7,1789.6,5.58784085]
[1745669316305,5.21999127,1789.7,1789.6,5.58784085]
[1745669324818,0.12299127,1789.7,1789.6,6.70543974]
[1745669325037,0.05,1789.9,1789.8,6.37451644]
[1745669326791,0.05,1789.9,1789.8,6.78724932]
[1745669330922,1e-08,1789.9,1789.8,6.78724932]
[1745669331127,1e-08,1789.9,1789.8,11.07520404]
[1745669331333,1e-08,1789.9,1789.8,11.92699236]
[1745669331621,1e-08,1789.9,1789.8,11.07520404]
[1745669331846,0.8036,1791.4,1790.4,5.58504023]
[1745669332047,0.8036,1791.2,1790.6,0.5048853]
[1745669332367,0.8036,1791.2,1791.1,5.58316118]
[1745669332488,0.8036,1791.2,1791.0,5.58325839]
[1745669332693,0.8036,1791.2,1790.9,5.58351266]
[1745669333101,5.091,1791.1,1790.9,5.58351266]
[1745669333519,5.091,1791.0,1790.8,11.16783753]
[1745669333722,5.8995,1790.9,1790.8,5.58390914]
[1745669335609,5.8995,1790.9,1790.7,11.168475]
[1745669335926,5.8995,1790.9,1790.8,5.58409649]
[1745669338230,5.091,1790.9,1790.8,6.70094527]
[1745669340443,5.20020457,1790.9,1790.8,6.70094527]
[1745669342108,0.10920457,1790.9,1790.8,6.70094527]
[1745669342322,5.089,1791.2,1791.0,5.58318397]
[1745669342524,5.089,1791.2,1791.1,5.58316118]
[1745669345346,5.089,1791.2,1791.0,5.58327999]
[1745669345534,5.089,1791.2,1791.1,5.58316118]
[1745669345851,5.089,1791.2,1791.0,5.58346677]
[1745669346331,5.089,1791.2,1791.0,5.58323988]
[1745669346934,5.089,1791.2,1791.0,11.16647987]
[1745669347113,5.089,1791.2,1791.0,11.16648191]
[1745669347439,5.089,1791.2,1791.0,5.58323988]
[1745669347642,5.089,1791.2,1791.0,5.58322623]
[1745669349548,5.089,1791.2,1790.7,5.58438898]
[1745669349549,5.089,1791.2,1790.8,5.58393351]
[1745669349725,0.7675,1791.1,1790.9,5.58376108]
[1745669349914,5.089,1791.2,1790.9,5.58376108]
[1745669349915,5.089,1791.2,1791.0,5.58347292]
[1745669350115,5.8565,1791.2,1791.0,5.58327059]
[1745669351363,5.8565,1791.2,1791.1,5.58316118]
[1745669351844,5.96378452,1791.2,1791.1,5.58316118]
[1745669352051,5.96378452,1791.2,1791.0,5.58329861]
[1745669353375,5.96378452,1791.2,1791.0,5.58325866]
[1745669354282,5.96378452,1791.2,1791.0,11.16660092]
[1745669354455,5.96378452,1791.2,1791.0,5.58325866]
[1745669354662,5.96378452,1791.2,1791.0,5.58321792]
[1745669354860,5.96378452,1791.2,1791.1,5.58316118]
[1745669355273,5.19628452,1791.2,1791.1,5.58316118]
[1745669355848,5.19628452,1791.2,1790.7,0.7735]
[1745669356196,5.19628452,1791.2,1790.9,5.58353494]
[1745669356543,5.19628452,1791.2,1791.0,5.58336431]
[1745669356981,5.19628452,1791.2,1790.9,5.58355455]
[1745669357772,5.19628452,1791.2,1791.0,5.58346104]
[1745669358723,5.19628452,1791.2,1790.9,5.58373939]
[1745669359450,5.19628452,1791.2,1790.7,0.7735]
[1745669359451,0.8108,1791.1,1790.6,5.58458659]
[1745669359761,0.10757617,1791.0,1790.7,5.58429283]
[1745669360278,0.10757617,1791.0,1790.7,11.16846358]
[1745669360452,0.10757617,1791.0,1790.8,5.58398351]
[1745669360853,0.10757617,1791.0,1790.5,0.7675]
[1745669361056,0.10757617,1791.0,1790.7,5.58417307]
[1745669361259,0.10757617,1791.0,1790.9,5.58378468]
[1745669362149,5.084,1791.2,1790.8,0.7675]
[1745669362341,0.10553447,1791.1,1791.0,5.5832263]
[1745669362671,5.084,1791.2,1791.0,5.5832263]
[1745669362864,0.10553447,1791.1,1791.0,5.5832263]
[1745669363179,5.084,1791.2,1791.0,5.5832263]
[1745669363481,0.10553447,1791.1,1791.0,5.5832263]
[1745669363783,5.084,1791.2,1791.0,5.5832263]
[1745669363986,0.10553447,1791.1,1791.0,5.5832263]
[1745669364475,5.084,1791.2,1791.0,5.5832263]
[1745669364682,0.10553447,1791.1,1791.0,5.5832263]
[1745669364993,5.084,1791.2,1791.0,5.5832263]
[1745669365158,0.10553447,1791.1,1791.0,5.5832263]
[1745669365355,0.9080543,1791.5,1791.1,0.7809]
[1745669365356,0.403169,1791.5,1791.1,0.7809]
[1745669365597,0.403169,1791.5,1791.4,5.58222619]
[1745669365957,0.403169,1791.5,1791.2,5.58271642]
[1745669366262,5.084,1791.4,1791.2,5.58264384]
[1745669366466,0.403169,1791.5,1790.9,5.58374675]
[1745669366669,0.403169,1791.5,1791.4,5.58222619]
[1745669369895,0.403169,1791.5,1791.2,5.58262277]
[1745669370102,0.403169,1791.5,1791.2,11.16523203]
[1745669370397,0.403169,1791.5,1791.3,5.58251742]
[1745669370603,0.403169,1791.5,1791.4,5.58222619]
[1745669371162,0.403169,1791.5,1791.3,5.58252122]
[1745669371163,0.403169,1791.5,1791.3,5.58238211]
[1745669371362,0.403169,1791.5,1791.2,5.58268579]
[1745669371591,0.403169,1791.5,1791.3,5.58229586]
[1745669371762,0.403169,1791.5,1791.2,5.5826995]
[1745669372393,0.403169,1791.5,1791.1,5.58303849]
[1745669372614,0.403169,1791.5,1791.2,5.58266101]
[1745669372902,0.403169,1791.5,1791.4,5.58222619]
[1745669375994,5.486169,1791.5,1791.4,5.58222619]
[1745669376663,5.486169,1791.5,1791.0,0.7638]
[1745669376903,5.486169,1791.5,1791.0,6.34713946]
[1745669377102,5.486169,1791.5,1791.2,5.5828485]
[1745669377807,5.486169,1791.5,1791.1,5.58298687]
[1745669378011,5.486169,1791.5,1791.1,11.16591953]
[1745669378190,5.486169,1791.5,1791.1,5.58293266]
[1745669378368,5.486169,1791.5,1791.2,5.58282394]
[1745669379113,5.486169,1791.5,1791.1,5.58293266]
[1745669380796,5.486169,1791.5,1791.1,5.58292952]
[1745669381805,5.486169,1791.5,1791.0,6.34710147]
[1745669382014,0.8306,1791.3,1790.9,5.58354937]
[1745669382213,0.8306,1791.3,1791.2,5.58284948]
[1745669382512,0.8306,1791.3,1791.1,5.58298953]
[1745669384317,5.08,1791.2,1791.0,5.58327931]
[1745669385113,5.08,1791.2,1791.0,5.583255]
[1745669385418,5.08,1791.2,1791.1,5.58316118]
[1745669385600,3.36,1792.0,1791.1,5.58316118]
[1745669385804,1e-08,1793.9,1793.8,5.57475749]
[1745669386024,1e-08,1794.0,1793.9,8.77444673]
[1745669386177,1e-08,1794.0,1793.9,5.77444673]
[1745669386701,1e-08,1794.0,1793.9,7.05328913]
[1745669386901,1e-08,1794.0,1793.9,6.29228913]
[1745669387628,0.05,1794.9,1794.6,0.2]
[1745669387919,5.934,1794.8,1794.6,0.2]
[1745669388086,5.934,1794.7,1794.4,0.2]
[1745669388289,5.934,1794.7,1794.1,0.2]
[1745669388627,5.931,1794.6,1794.1,0.2]
[1745669388830,16.8177,1794.5,1794.1,0.2]
[1745669389007,16.8177,1794.5,1794.0,0.2]
[1745669389314,16.8177,1794.5,1794.2,0.2]
[1745669389478,5.931,1794.4,1793.9,0.2]
[1745669390242,5.931,1794.4,1794.1,0.2]
[1745669390744,0.11752579,1794.3,1793.8,0.2]
[1745669391044,3.11752579,1794.3,1793.8,0.2]
[1745669391907,3.0677,1793.9,1793.2,0.2]
[1745669392233,6.06313749,1793.8,1793.2,0.2]
[1745669392734,6.06313749,1793.8,1793.0,0.2]
[1745669392898,3.0,1793.7,1793.0,5.77722598]
[1745669393100,3.0,1793.5,1793.0,5.77722598]
[1745669393332,0.13413749,1793.4,1793.0,5.77722598]
[1745669393514,5.929,1793.3,1793.0,5.77722598]
[1745669393841,5.929,1793.3,1793.1,5.57686906]
[1745669394035,0.13413749,1793.2,1793.0,5.77711394]
[1745669394402,0.13413749,1793.2,1793.1,5.7769338]
[1745669394738,5.928,1793.2,1793.1,5.7769338]
[1745669394939,6.04236205,1793.2,1793.1,5.7769338]
[1745669396258,0.11436205,1793.2,1793.1,5.7769338]
[1745669396456,6.04236205,1793.2,1793.1,5.7769338]
[1745669396598,5.928,1793.2,1793.1,5.7769338]
[1745669396803,16.745,1793.6,1793.3,0.2]
[1745669397005,5.928,1793.5,1793.3,5.77611263]
[1745669398223,16.745,1793.6,1793.4,5.57600089]
[1745669398469,16.745,1793.6,1793.5,0.2]
[1745669398773,5.928,1793.5,1793.3,5.77616]
[1745669399055,5.928,1793.5,1793.1,0.2]
[1745669399215,5.928,1793.5,1793.0,5.77712231]
[1745669399646,5.928,1793.5,1793.1,0.2]
[1745669400253,5.928,1793.5,1793.1,5.77686117]
[1745669400552,5.928,1793.5,1793.1,0.2]
[1745669401156,0.0677,1793.4,1793.1,5.77672862]
[1745669401372,0.0677,1793.4,1793.1,0.2]
[1745669401577,0.0677,1793.4,1792.9,5.77747891]
[1745669401885,0.0677,1793.4,1792.9,0.2]
[1745669402179,0.0677,1793.4,1793.0,5.77704474]
[1745669402674,0.0677,1793.4,1793.0,0.2]
[1745669402965,0.0677,1793.4,1793.3,0.2]
[1745669403180,5.9957,1793.4,1793.3,0.2]
[1745669405568,5.928,1793.4,1793.3,0.2]
[1745669406652,16.745,1793.6,1793.3,0.2]
[1745669406856,5.927,1793.4,1793.3,0.2]
[1745669408292,16.745,1793.6,1793.3,0.2]
[1745669408472,5.927,1793.4,1793.3,5.77631182]
[1745669408784,5.927,1793.4,1793.3,0.2]
[1745669410382,5.927,1793.4,1793.3,5.77631182]
[1745669411833,5.927,1793.4,1793.1,0.2]
[1745669412138,8.40629894,1793.4,1792.8,0.2]
[1745669412351,8.40629894,1793.4,1792.8,5.77774864]
[1745669413131,3.0677,1793.3,1792.8,0.2]
[1745669413639,2.47929894,1793.2,1792.7,0.2]
[1745669413928,2.47929894,1793.2,1792.6,0.2]
[1745669415006,2.47929894,1793.2,1792.6,5.77830723]
[1745669415336,2.47929894,1793.2,1792.6,0.2]
[1745669415540,2.47929894,1793.2,1792.7,0.31157258]
[1745669415759,5.928,1793.1,1792.9,5.77741094]
[1745669416249,5.928,1793.1,1793.0,0.5192673]
[1745669416405,5.928,1793.1,1793.0,1.03083988]
[1745669416596,5.928,1793.1,1793.0,0.83083988]
[1745669417234,8.928,1793.1,1793.0,0.31157258]
[1745669417628,8.928,1793.1,1792.7,0.7196194]
[1745669418229,5.928,1793.1,1792.7,6.29761664]
[1745669418430,5.928,1793.1,1792.8,12.18704547]
[1745669418733,5.928,1793.1,1792.9,0.5196194]
[1745669419435,5.928,1793.1,1792.8,5.77773266]
[1745669419630,5.928,1793.1,1792.9,5.57754192]
[1745669419833,5.928,1793.1,1793.0,0.31226664]
[1745669420138,5.928,1793.1,1793.0,0.83270147]
[1745669421429,5.9957,1793.1,1793.0,0.83270147]
[1745669421632,5.9957,1793.1,1793.0,0.52043483]
[1745669421633,8.9957,1793.1,1793.0,0.52043483]
[1745669421946,3.0,1793.0,1792.5,0.2]
[1745669422147,2.47929894,1792.7,1792.1,0.05]
[1745669422436,2.47929894,1792.5,1792.1,0.05]
[1745669423137,5.47929894,1792.5,1792.1,0.05]
[1745669423340,2.47929894,1792.3,1792.1,0.05]
[1745669423526,0.0677,1792.2,1792.1,0.05]
[1745669424414,6.1577,1792.5,1792.1,0.05]
[1745669424614,5.808,1792.4,1792.1,0.05]
[1745669424926,5.808,1792.4,1792.1,0.25]
[1745669430363,5.808,1792.4,1792.1,5.82988664]
[1745669430566,5.808,1792.4,1792.1,0.25]
[1745669431567,0.21158637,1792.3,1792.1,0.25]
[1745669431870,5.808,1792.4,1792.1,0.05]
[1745669432163,8.28729894,1792.4,1792.1,0.05]
[1745669432363,3.0,1792.3,1792.1,0.05]
[1745669432666,3.2051639,1792.3,1792.1,0.05]
[1745669438040,5.68446284,1792.3,1792.1,0.05]
[1745669438284,0.0677,1792.2,1792.1,0.05]
[1745669438580,16.8177,1792.2,1792.1,0.05]
[1745669438767,20.02052664,1792.2,1792.1,0.05]
[1745669439741,26.53974779,1792.2,1792.1,0.05]
[1745669441465,29.89974779,1792.2,1792.1,0.05]
[1745669441643,29.83204779,1792.2,1792.1,0.05]
[1745669441852,29.89974779,1792.2,1792.1,0.05]
[1745669443356,36.33974779,1792.2,1792.1,0.05]
[1745669449391,26.89974779,1792.2,1792.1,0.05]
[1745669449753,29.89974779,1792.2,1792.1,0.05]
[1745669451787,30.44974779,1792.2,1792.1,0.05]
[1745669453699,30.95393916,1792.2,1792.1,0.05]
[1745669458491,31.45813053,1792.2,1792.1,0.05]
[1745669458701,37.34813053,1792.2,1792.1,0.05]
[1745669458918,36.84393916,1792.2,1792.1,0.05]